fUST/lending_fUST_20260519
["ID","MTS","AMOUNT","RATE_DAILY","PERIOD"]
[422645748,1779204650000,-500.0,9.315e-05,2]
[422645737,1779204650000,-500.0,9.315e-05,2]
[422645746,1779204650000,-892.59,9.315e-05,2]
[422645732,1779204650000,-500.0,9.315e-05,2]
[422645738,1779204650000,-1979.22,9.315e-05,2]
[422645816,1779204651000,-500.0,9.589e-05,2]
[422645814,1779204651000,-500.0,9.589e-05,2]
[422645817,1779204651000,-500.0,9.589e-05,2]
[422645813,1779204651000,-605.62,9.589e-05,2]
[422645815,1779204651000,-500.0,9.589e-05,2]
[422645810,1779204651000,-500.0,9.589e-05,2]
[422645822,1779204651000,-466.54,9.589e-05,2]
[422645819,1779204651000,-500.0,9.589e-05,2]
[422645820,1779204651000,-268.26,9.589e-05,2]
[422645811,1779204651000,-515.12,9.589e-05,2]
[422645812,1779204651000,-956.05,9.589e-05,2]
[422645821,1779204651000,-500.0,9.589e-05,2]
[422645818,1779204651000,-484.29,9.589e-05,2]
[422645837,1779204651000,-500.0,9.589e-05,2]
[422645824,1779204651000,-500.0,9.589e-05,2]
[422645823,1779204651000,-409.96,9.589e-05,2]
[422645835,1779204651000,-785.61,9.589e-05,2]
[422645827,1779204651000,-500.0,9.589e-05,2]
[422645828,1779204651000,-500.0,9.589e-05,2]
[422645831,1779204651000,-500.0,9.589e-05,2]
[422645830,1779204651000,-500.0,9.589e-05,2]
[422645833,1779204651000,-500.0,9.589e-05,2]
[422645832,1779204651000,-178.46,9.589e-05,2]
[422645825,1779204651000,-500.0,9.589e-05,2]
[422645829,1779204651000,-387.8,9.589e-05,2]
[422645826,1779204651000,-500.0,9.589e-05,2]
[422645804,1779204651000,-720.0,9.403e-05,2]
[422645834,1779204651000,-500.0,9.589e-05,2]
[422645806,1779204651000,-983.425981,9.575e-05,2]
[422645786,1779204651000,-969.49,9.315e-05,2]
[422645800,1779204651000,-510.34,9.315e-05,2]
[422645839,1779204651000,-257.5,9.589e-05,2]
[422645779,1779204651000,-500.0,9.315e-05,2]
[422645781,1779204651000,-2527.97,9.315e-05,2]
[422645780,1779204651000,-574.07,9.315e-05,2]
[422645782,1779204651000,-607.94,9.315e-05,2]
[422645783,1779204651000,-500.0,9.315e-05,2]
[422645788,1779204651000,-500.0,9.315e-05,2]
[422645789,1779204651000,-789.12,9.315e-05,2]
[422645791,1779204651000,-500.0,9.315e-05,2]
[422645792,1779204651000,-877.0,9.315e-05,2]
[422645784,1779204651000,-1118.86,9.315e-05,2]
[422645793,1779204651000,-1936.93,9.315e-05,2]
[422645790,1779204651000,-504.4,9.315e-05,2]
[422645785,1779204651000,-500.0,9.315e-05,2]
[422645794,1779204651000,-2027.39,9.315e-05,2]
[422645795,1779204651000,-500.0,9.315e-05,2]
[422645787,1779204651000,-728.55,9.315e-05,2]
[422645797,1779204651000,-577.96,9.315e-05,2]
[422645807,1779204651000,-500.0,9.589e-05,2]
[422645808,1779204651000,-500.0,9.589e-05,2]
[422645809,1779204651000,-188.39,9.589e-05,2]
[422645799,1779204651000,-500.0,9.315e-05,2]
[422645802,1779204651000,-500.0,9.315e-05,2]
[422645798,1779204651000,-851.31,9.315e-05,2]
[422645803,1779204651000,-340.6552783,9.379e-05,21]
[422645801,1779204651000,-500.0,9.315e-05,2]
[422645805,1779204651000,-4690.69342045,9.505e-05,2]
[422645796,1779204651000,-1148.47,9.315e-05,2]
[422645836,1779204651000,-173.6,9.589e-05,2]
[422645838,1779204651000,-500.0,9.589e-05,2]
[422645840,1779204651000,-530.29,9.589e-05,2]
[422645875,1779204651000,-641.96,9.589e-05,2]
[422645885,1779204651000,-2317.52,9.589e-05,2]
[422645886,1779204651000,-866.87,9.589e-05,2]
[422645887,1779204651000,-1587.5,9.589e-05,2]
[422645877,1779204651000,-587.85,9.589e-05,2]
[422645874,1779204651000,-704.01,9.589e-05,2]
[422645876,1779204651000,-174.72,9.589e-05,2]
[422645883,1779204651000,-517.78,9.589e-05,2]
[422645878,1779204651000,-618.04,9.589e-05,2]
[422645880,1779204651000,-500.0,9.589e-05,2]
[422645879,1779204651000,-1585.19,9.589e-05,2]
[422645881,1779204651000,-721.09,9.589e-05,2]
[422645884,1779204651000,-500.0,9.589e-05,2]
[422645868,1779204651000,-774.09,9.589e-05,2]
[422645888,1779204651000,-12350.34,9.589e-05,2]
[422645889,1779204651000,-574.07,9.589e-05,2]
[422645891,1779204651000,-607.94,9.589e-05,2]
[422645896,1779204651000,-728.55,9.589e-05,2]
[422645892,1779204651000,-324.62,9.589e-05,2]
[422645894,1779204651000,-500.0,9.589e-05,2]
[422645893,1779204651000,-1118.86,9.589e-05,2]
[422645895,1779204651000,-969.49,9.589e-05,2]
[422645901,1779204651000,-877.0,9.589e-05,2]
[422645900,1779204651000,-500.0,9.589e-05,2]
[422645899,1779204651000,-504.4,9.589e-05,2]
[422645897,1779204651000,-500.0,9.589e-05,2]
[422645841,1779204651000,-500.0,9.589e-05,2]
[422645898,1779204651000,-789.12,9.589e-05,2]
[422645890,1779204651000,-2527.97,9.589e-05,2]
[422645869,1779204651000,-811.08,9.589e-05,2]
[422645882,1779204651000,-500.0,9.589e-05,2]
[422645866,1779204651000,-500.0,9.589e-05,2]
[422645867,1779204651000,-169.3,9.589e-05,2]
[422645845,1779204651000,-443.64,9.589e-05,2]
[422645846,1779204651000,-500.0,9.589e-05,2]
[422645844,1779204651000,-153.14,9.589e-05,2]
[422645843,1779204651000,-500.0,9.589e-05,2]
[422645848,1779204651000,-500.0,9.589e-05,2]
[422645858,1779204651000,-1979.22,9.589e-05,2]
[422645859,1779204651000,-500.0,9.589e-05,2]
[422645860,1779204651000,-416.0,9.589e-05,2]
[422645847,1779204651000,-500.0,9.589e-05,2]
[422645849,1779204651000,-1249.4304,9.589e-05,2]
[422645852,1779204651000,-337.9,9.589e-05,2]
[422645854,1779204651000,-500.0,9.589e-05,2]
[422645855,1779204651000,-500.0,9.589e-05,2]
[422645842,1779204651000,-275.44,9.589e-05,2]
[422645872,1779204651000,-500.0,9.589e-05,2]
[422645850,1779204651000,-500.0,9.589e-05,2]
[422645873,1779204651000,-505.34,9.589e-05,2]
[422645865,1779204651000,-640.59,9.589e-05,2]
[422645871,1779204651000,-766.11,9.589e-05,2]
[422645862,1779204651000,-629.27,9.589e-05,2]
[422645863,1779204651000,-500.0,9.589e-05,2]
[422645870,1779204651000,-500.0,9.589e-05,2]
[422645861,1779204651000,-500.0,9.589e-05,2]
[422645857,1779204651000,-500.0,9.589e-05,2]
[422645856,1779204651000,-500.0,9.589e-05,2]
[422645853,1779204651000,-632.8,9.589e-05,2]
[422645851,1779204651000,-500.0,9.589e-05,2]
[422645864,1779204651000,-892.59,9.589e-05,2]
[422645944,1779204652000,-500.0,9.863e-05,2]
[422645939,1779204652000,-500.0,9.863e-05,2]
[422645943,1779204652000,-500.0,9.863e-05,2]
[422645945,1779204652000,-632.8,9.863e-05,2]
[422645940,1779204652000,-311.88,9.863e-05,2]
[422645942,1779204652000,-1249.4304,9.863e-05,2]
[422645930,1779204652000,-500.0,9.863e-05,2]
[422645935,1779204652000,-343.19,9.863e-05,2]
[422645937,1779204652000,-500.0,9.863e-05,2]
[422645947,1779204652000,-500.0,9.863e-05,2]
[422645946,1779204652000,-500.0,9.863e-05,2]
[422645941,1779204652000,-500.0,9.863e-05,2]
[422645936,1779204652000,-530.29,9.863e-05,2]
[422645938,1779204652000,-500.0,9.863e-05,2]
[422645948,1779204652000,-500.0,9.863e-05,2]
[422645960,1779204652000,-766.11,9.863e-05,2]
[422645950,1779204652000,-1979.22,9.863e-05,2]
[422645959,1779204652000,-811.08,9.863e-05,2]
[422645957,1779204652000,-500.0,9.863e-05,2]
[422645952,1779204652000,-500.0,9.863e-05,2]
[422645958,1779204652000,-774.09,9.863e-05,2]
[422645956,1779204652000,-640.59,9.863e-05,2]
[422645955,1779204652000,-892.59,9.863e-05,2]
[422645951,1779204652000,-500.0,9.863e-05,2]
[422645954,1779204652000,-500.0,9.863e-05,2]
[422645953,1779204652000,-629.27,9.863e-05,2]
[422645971,1779204652000,-2317.52,9.863e-05,2]
[422645963,1779204652000,-641.96,9.863e-05,2]
[422645961,1779204652000,-500.0,9.863e-05,2]
[422645949,1779204652000,-500.0,9.863e-05,2]
[422645934,1779204652000,-500.0,9.863e-05,2]
[422645905,1779204652000,-1148.47,9.589e-05,2]
[422645928,1779204652000,-500.0,9.863e-05,2]
[422645962,1779204652000,-704.01,9.863e-05,2]
[422645903,1779204652000,-2027.39,9.589e-05,2]
[422645902,1779204652000,-1936.93,9.589e-05,2]
[422645908,1779204652000,-500.0,9.589e-05,2]
[422645904,1779204652000,-500.0,9.589e-05,2]
[422645907,1779204652000,-851.31,9.589e-05,2]
[422645906,1779204652000,-577.96,9.589e-05,2]
[422645910,1779204652000,-16879.2063601,9.672e-05,2]
[422645920,1779204652000,-500.0,9.863e-05,2]
[422645921,1779204652000,-500.0,9.863e-05,2]
[422645909,1779204652000,-500.0,9.589e-05,2]
[422645911,1779204652000,-1496.7472284,9.672e-05,2]
[422645912,1779204652000,-25920.3659961,9.672e-05,2]
[422645914,1779204652000,-500.0,9.863e-05,2]
[422645915,1779204652000,-500.0,9.863e-05,2]
[422645913,1779204652000,-1178.2693856,9.672e-05,2]
[422645919,1779204652000,-500.0,9.863e-05,2]
[422645918,1779204652000,-500.0,9.863e-05,2]
[422645916,1779204652000,-500.0,9.863e-05,2]
[422645917,1779204652000,-956.05,9.863e-05,2]
[422645923,1779204652000,-504.43,9.863e-05,2]
[422645922,1779204652000,-500.0,9.863e-05,2]
[422645933,1779204652000,-785.61,9.863e-05,2]
[422645925,1779204652000,-500.0,9.863e-05,2]
[422645924,1779204652000,-500.0,9.863e-05,2]
[422645927,1779204652000,-500.0,9.863e-05,2]
[422645926,1779204652000,-500.0,9.863e-05,2]
[422645929,1779204652000,-500.0,9.863e-05,2]
[422645932,1779204652000,-500.0,9.863e-05,2]
[422645931,1779204652000,-500.0,9.863e-05,2]
[422645970,1779204652000,-500.0,9.863e-05,2]
[422646027,1779204652000,-632.8,0.00010136,2]
[422645972,1779204652000,-866.87,9.863e-05,2]
[422646003,1779204652000,-500.0,0.00010136,2]
[422646004,1779204652000,-500.0,0.00010136,2]
[422646005,1779204652000,-174.14,0.00010136,2]
[422646002,1779204652000,-956.05,0.00010136,2]
[422646008,1779204652000,-500.0,0.00010136,2]
[422646013,1779204652000,-308.05,0.00010136,2]
[422646009,1779204652000,-594.41,0.00010136,2]
[422646010,1779204652000,-500.0,0.00010136,2]
[422646011,1779204652000,-500.0,0.00010136,2]
[422646012,1779204652000,-500.0,0.00010136,2]
[422646006,1779204652000,-189.42,0.00010136,2]
[422646007,1779204652000,-500.0,0.00010136,2]
[422646018,1779204652000,-500.0,0.00010136,2]
[422646019,1779204652000,-530.29,0.00010136,2]
[422646020,1779204652000,-500.0,0.00010136,2]
[422646021,1779204652000,-500.0,0.00010136,2]
[422646015,1779204652000,-154.03,0.00010136,2]
[422646017,1779204652000,-785.61,0.00010136,2]
[422646016,1779204652000,-500.0,0.00010136,2]
[422646014,1779204652000,-500.0,0.00010136,2]
[422646022,1779204652000,-500.0,0.00010136,2]
[422646023,1779204652000,-500.0,0.00010136,2]
[422646024,1779204652000,-1249.4304,0.00010136,2]
[422646025,1779204652000,-500.0,0.00010136,2]
[422646026,1779204652000,-505.42,0.00010136,2]
[422646030,1779204652000,-500.0,0.00010136,2]
[422645969,1779204652000,-500.0,9.863e-05,2]
[422646029,1779204652000,-402.82,0.00010136,2]
[422646028,1779204652000,-500.0,0.00010136,2]
[422646001,1779204652000,-500.0,0.00010136,2]
[422646000,1779204652000,-500.0,0.00010136,2]
[422646031,1779204652000,-500.0,0.00010136,2]
[422645997,1779204652000,-5632.00865643,0.00010005,2]
[422645995,1779204652000,-210.0,9.944e-05,2]
[422645968,1779204652000,-721.09,9.863e-05,2]
[422645966,1779204652000,-1585.19,9.863e-05,2]
[422645964,1779204652000,-587.85,9.863e-05,2]
[422645973,1779204652000,-1587.5,9.863e-05,2]
[422645967,1779204652000,-500.0,9.863e-05,2]
[422645974,1779204652000,-12350.34,9.863e-05,2]
[422645977,1779204652000,-607.94,9.863e-05,2]
[422645976,1779204652000,-2527.97,9.863e-05,2]
[422645978,1779204652000,-1118.86,9.863e-05,2]
[422645979,1779204652000,-500.0,9.863e-05,2]
[422645975,1779204652000,-574.07,9.863e-05,2]
[422645985,1779204652000,-500.0,9.863e-05,2]
[422645982,1779204652000,-500.0,9.863e-05,2]
[422645980,1779204652000,-969.49,9.863e-05,2]
[422645965,1779204652000,-618.04,9.863e-05,2]
[422645986,1779204652000,-877.0,9.863e-05,2]
[422645981,1779204652000,-728.55,9.863e-05,2]
[422645998,1779204652000,-400.18204947,0.00010012,2]
[422645999,1779204652000,-500.0,0.00010136,2]
[422645988,1779204652000,-2027.39,9.863e-05,2]
[422645994,1779204652000,-983.425981,9.92e-05,2]
[422645993,1779204652000,-500.0,9.863e-05,2]
[422645996,1779204652000,-160.0,0.0001,2]
[422645990,1779204652000,-1148.47,9.863e-05,2]
[422645983,1779204652000,-789.12,9.863e-05,2]
[422645991,1779204652000,-577.96,9.863e-05,2]
[422645992,1779204652000,-851.31,9.863e-05,2]
[422645989,1779204652000,-500.0,9.863e-05,2]
[422645987,1779204652000,-1936.93,9.863e-05,2]
[422645984,1779204652000,-504.4,9.863e-05,2]
[422646069,1779204653000,-789.12,0.00010136,2]
[422646075,1779204653000,-2027.39,0.00010136,2]
[422646079,1779204653000,-577.96,0.00010136,2]
[422646080,1779204653000,-851.31,0.00010136,2]
[422646073,1779204653000,-877.0,0.00010136,2]
[422646070,1779204653000,-504.4,0.00010136,2]
[422646071,1779204653000,-500.0,0.00010136,2]
[422646081,1779204653000,-500.0,0.00010136,2]
[422646078,1779204653000,-1148.47,0.00010136,2]
[422646076,1779204653000,-500.0,0.00010136,2]
[422646074,1779204653000,-1936.93,0.00010136,2]
[422646068,1779204653000,-500.0,0.00010136,2]
[422646089,1779204653000,-500.0,0.0001041,2]
[422646094,1779204653000,-500.0,0.0001041,2]
[422646095,1779204653000,-500.0,0.0001041,2]
[422646083,1779204653000,-864.0,0.00010344,2]
[422646088,1779204653000,-500.0,0.0001041,2]
[422646097,1779204653000,-500.0,0.0001041,2]
[422646092,1779204653000,-500.0,0.0001041,2]
[422646093,1779204653000,-500.0,0.0001041,2]
[422646085,1779204653000,-500.0,0.0001041,2]
[422646086,1779204653000,-500.0,0.0001041,2]
[422646087,1779204653000,-956.05,0.0001041,2]
[422646090,1779204653000,-500.0,0.0001041,2]
[422646091,1779204653000,-500.0,0.0001041,2]
[422646062,1779204653000,-607.94,0.00010136,2]
[422646084,1779204653000,-581.00961889,0.0001041,2]
[422646060,1779204653000,-2527.97,0.00010136,2]
[422646041,1779204653000,-811.08,0.00010136,2]
[422646065,1779204653000,-969.49,0.00010136,2]
[422646032,1779204653000,-1979.22,0.00010136,2]
[422646035,1779204653000,-629.27,0.00010136,2]
[422646034,1779204653000,-500.0,0.00010136,2]
[422646039,1779204653000,-500.0,0.00010136,2]
[422646037,1779204653000,-892.59,0.00010136,2]
[422646038,1779204653000,-640.59,0.00010136,2]
[422646033,1779204653000,-500.0,0.00010136,2]
[422646036,1779204653000,-500.0,0.00010136,2]
[422646050,1779204653000,-721.09,0.00010136,2]
[422646042,1779204653000,-766.11,0.00010136,2]
[422646043,1779204653000,-500.0,0.00010136,2]
[422646040,1779204653000,-774.09,0.00010136,2]
[422646051,1779204653000,-500.0,0.00010136,2]
[422646044,1779204653000,-704.01,0.00010136,2]
[422646049,1779204653000,-500.0,0.00010136,2]
[422646048,1779204653000,-1585.19,0.00010136,2]
[422646045,1779204653000,-641.96,0.00010136,2]
[422646046,1779204653000,-587.85,0.00010136,2]
[422646047,1779204653000,-618.04,0.00010136,2]
[422646052,1779204653000,-500.0,0.00010136,2]
[422646054,1779204653000,-2317.52,0.00010136,2]
[422646055,1779204653000,-866.87,0.00010136,2]
[422646056,1779204653000,-1587.5,0.00010136,2]
[422646064,1779204653000,-500.0,0.00010136,2]
[422646063,1779204653000,-1118.86,0.00010136,2]
[422646067,1779204653000,-728.55,0.00010136,2]
[422646059,1779204653000,-574.07,0.00010136,2]
[422646058,1779204653000,-12350.34,0.00010136,2]
[422646107,1779204653000,-500.0,0.0001041,2]
[422646109,1779204653000,-1979.22,0.0001041,2]
[422646096,1779204653000,-785.61,0.0001041,2]
[422646133,1779204653000,-12350.34,0.0001041,2]
[422646134,1779204653000,-574.07,0.0001041,2]
[422646132,1779204653000,-1587.5,0.0001041,2]
[422646135,1779204653000,-2527.97,0.0001041,2]
[422646138,1779204653000,-500.0,0.0001041,2]
[422646142,1779204653000,-789.12,0.0001041,2]
[422646141,1779204653000,-500.0,0.0001041,2]
[422646139,1779204653000,-969.49,0.0001041,2]
[422646137,1779204653000,-1118.86,0.0001041,2]
[422646140,1779204653000,-728.55,0.0001041,2]
[422646136,1779204653000,-607.94,0.0001041,2]
[422646146,1779204653000,-1936.93,0.0001041,2]
[422646147,1779204653000,-2027.39,0.0001041,2]
[422646144,1779204653000,-500.0,0.0001041,2]
[422646145,1779204653000,-877.0,0.0001041,2]
[422646143,1779204653000,-504.4,0.0001041,2]
[422646149,1779204653000,-1148.47,0.0001041,2]
[422646151,1779204653000,-851.31,0.0001041,2]
[422646148,1779204653000,-500.0,0.0001041,2]
[422646150,1779204653000,-577.96,0.0001041,2]
[422646155,1779204653000,-500.0,0.00010684,2]
[422646152,1779204653000,-500.0,0.0001041,2]
[422646154,1779204653000,-500.0,0.00010684,2]
[422646153,1779204653000,-5917.60663878,0.00010506,2]
[422646156,1779204653000,-956.05,0.00010684,2]
[422646158,1779204653000,-500.0,0.00010684,2]
[422646108,1779204653000,-500.0,0.0001041,2]
[422646128,1779204653000,-500.0,0.0001041,2]
[422646125,1779204653000,-1585.19,0.0001041,2]
[422646157,1779204653000,-161.35026069,0.00010684,2]
[422646129,1779204653000,-500.0,0.0001041,2]
[422646126,1779204653000,-500.0,0.0001041,2]
[422646098,1779204653000,-530.29,0.0001041,2]
[422646106,1779204653000,-500.0,0.0001041,2]
[422646104,1779204653000,-500.0,0.0001041,2]
[422646103,1779204653000,-1249.4304,0.0001041,2]
[422646100,1779204653000,-500.0,0.0001041,2]
[422646099,1779204653000,-500.0,0.0001041,2]
[422646105,1779204653000,-632.8,0.0001041,2]
[422646101,1779204653000,-500.0,0.0001041,2]
[422646120,1779204653000,-500.0,0.0001041,2]
[422646113,1779204653000,-500.0,0.0001041,2]
[422646112,1779204653000,-629.27,0.0001041,2]
[422646110,1779204653000,-500.0,0.0001041,2]
[422646102,1779204653000,-500.0,0.0001041,2]
[422646115,1779204653000,-640.59,0.0001041,2]
[422646111,1779204653000,-287.18794409,0.0001041,2]
[422646122,1779204653000,-641.96,0.0001041,2]
[422646131,1779204653000,-866.87,0.0001041,2]
[422646124,1779204653000,-618.04,0.0001041,2]
[422646123,1779204653000,-587.85,0.0001041,2]
[422646130,1779204653000,-2317.52,0.0001041,2]
[422646127,1779204653000,-721.09,0.0001041,2]
[422646117,1779204653000,-774.09,0.0001041,2]
[422646118,1779204653000,-811.08,0.0001041,2]
[422646116,1779204653000,-500.0,0.0001041,2]
[422646119,1779204653000,-766.11,0.0001041,2]
[422646114,1779204653000,-892.59,0.0001041,2]
[422646121,1779204653000,-704.01,0.0001041,2]
[422646194,1779204654000,-570.88,0.00010684,2]
[422646198,1779204654000,-2317.52,0.00010684,2]
[422646197,1779204654000,-500.0,0.00010684,2]
[422646195,1779204654000,-721.09,0.00010684,2]
[422646192,1779204654000,-618.04,0.00010684,2]
[422646190,1779204654000,-641.96,0.00010684,2]
[422646187,1779204654000,-766.11,0.00010684,2]
[422646199,1779204654000,-866.87,0.00010684,2]
[422646186,1779204654000,-811.08,0.00010684,2]
[422646193,1779204654000,-1585.19,0.00010684,2]
[422646185,1779204654000,-774.09,0.00010684,2]
[422646207,1779204654000,-969.49,0.00010684,2]
[422646200,1779204654000,-1587.5,0.00010684,2]
[422646202,1779204654000,-574.07,0.00010684,2]
[422646203,1779204654000,-2527.97,0.00010684,2]
[422646201,1779204654000,-12350.34,0.00010684,2]
[422646205,1779204654000,-1118.86,0.00010684,2]
[422646208,1779204654000,-728.55,0.00010684,2]
[422646206,1779204654000,-263.4,0.00010684,2]
[422646204,1779204654000,-607.94,0.00010684,2]
[422646209,1779204654000,-500.0,0.00010684,2]
[422646210,1779204654000,-789.12,0.00010684,2]
[422646188,1779204654000,-500.0,0.00010684,2]
[422646212,1779204654000,-500.0,0.00010684,2]
[422646196,1779204654000,-500.0,0.00010684,2]
[422646189,1779204654000,-704.01,0.00010684,2]
[422646173,1779204654000,-500.0,0.00010684,2]
[422646191,1779204654000,-587.85,0.00010684,2]
[422646211,1779204654000,-504.4,0.00010684,2]
[422646167,1779204654000,-530.29,0.00010684,2]
[422646159,1779204654000,-500.0,0.00010684,2]
[422646162,1779204654000,-286.33642024,0.00010684,2]
[422646166,1779204654000,-500.0,0.00010684,2]
[422646160,1779204654000,-500.0,0.00010684,2]
[422646161,1779204654000,-500.0,0.00010684,2]
[422646163,1779204654000,-500.0,0.00010684,2]
[422646165,1779204654000,-785.61,0.00010684,2]
[422646179,1779204654000,-500.0,0.00010684,2]
[422646169,1779204654000,-500.0,0.00010684,2]
[422646183,1779204654000,-640.59,0.00010684,2]
[422646168,1779204654000,-500.0,0.00010684,2]
[422646174,1779204654000,-632.8,0.00010684,2]
[422646172,1779204654000,-1249.4304,0.00010684,2]
[422646170,1779204654000,-500.0,0.00010684,2]
[422646177,1779204654000,-500.0,0.00010684,2]
[422646175,1779204654000,-500.0,0.00010684,2]
[422646178,1779204654000,-1979.22,0.00010684,2]
[422646171,1779204654000,-500.0,0.00010684,2]
[422646180,1779204654000,-629.27,0.00010684,2]
[422646182,1779204654000,-892.59,0.00010684,2]
[422646184,1779204654000,-500.0,0.00010684,2]
[422646181,1779204654000,-500.0,0.00010684,2]
[422646176,1779204654000,-500.0,0.00010684,2]
[422646213,1779204654000,-877.0,0.00010684,2]
[422646164,1779204654000,-500.0,0.00010684,2]
[422646214,1779204654000,-1936.93,0.00010684,2]
[422646254,1779204654000,-629.27,0.00010958,2]
[422646246,1779204654000,-1249.4304,0.00010958,2]
[422646255,1779204654000,-500.0,0.00010958,2]
[422646252,1779204654000,-1979.22,0.00010958,2]
[422646247,1779204654000,-500.0,0.00010958,2]
[422646245,1779204654000,-500.0,0.00010958,2]
[422646249,1779204654000,-500.0,0.00010958,2]
[422646251,1779204654000,-283.93,0.00010958,2]
[422646248,1779204654000,-632.8,0.00010958,2]
[422646253,1779204654000,-500.0,0.00010958,2]
[422646250,1779204654000,-500.0,0.00010958,2]
[422646244,1779204654000,-500.0,0.00010958,2]
[422646256,1779204654000,-892.59,0.00010958,2]
[422646258,1779204654000,-500.0,0.00010958,2]
[422646266,1779204654000,-641.96,0.00010958,2]
[422646267,1779204654000,-587.85,0.00010958,2]
[422646261,1779204654000,-500.0,0.00010958,2]
[422646260,1779204654000,-811.08,0.00010958,2]
[422646263,1779204654000,-766.11,0.00010958,2]
[422646257,1779204654000,-640.59,0.00010958,2]
[422646265,1779204654000,-704.01,0.00010958,2]
[422646264,1779204654000,-500.0,0.00010958,2]
[422646262,1779204654000,-482.88951841,0.00010958,2]
[422646216,1779204654000,-500.0,0.00010684,2]
[422646259,1779204654000,-774.09,0.00010958,2]
[422646243,1779204654000,-500.0,0.00010958,2]
[422646268,1779204654000,-618.04,0.00010958,2]
[422646240,1779204654000,-486.11,0.00010958,2]
[422646218,1779204654000,-577.96,0.00010684,2]
[422646215,1779204654000,-2027.39,0.00010684,2]
[422646219,1779204654000,-851.31,0.00010684,2]
[422646217,1779204654000,-1148.47,0.00010684,2]
[422646220,1779204654000,-500.0,0.00010684,2]
[422646222,1779204654000,-153.55,0.000108,2]
[422646223,1779204654000,-647.0,0.00010823,2]
[422646242,1779204654000,-500.0,0.00010958,2]
[422646228,1779204654000,-185.0,0.00010823,2]
[422646225,1779204654000,-2201.0,0.00010823,2]
[422646227,1779204654000,-742.0,0.00010823,2]
[422646230,1779204654000,-500.0,0.00010958,2]
[422646221,1779204654000,-200.0,0.00010777,2]
[422646231,1779204654000,-618.03,0.00010958,2]
[422646241,1779204654000,-530.29,0.00010958,2]
[422646224,1779204654000,-1425.748,0.00010823,2]
[422646232,1779204654000,-956.05,0.00010958,2]
[422646238,1779204654000,-500.0,0.00010958,2]
[422646236,1779204654000,-500.0,0.00010958,2]
[422646239,1779204654000,-785.61,0.00010958,2]
[422646233,1779204654000,-500.0,0.00010958,2]
[422646235,1779204654000,-500.0,0.00010958,2]
[422646237,1779204654000,-500.0,0.00010958,2]
[422646229,1779204654000,-3968.84238991,0.00010859,2]
[422646226,1779204654000,-475.506,0.00010823,2]
[422646234,1779204654000,-500.0,0.00010958,2]
[422646308,1779204655000,-424.16,0.00010959,2]
[422646304,1779204655000,-168.02615,0.00010959,2]
[422646305,1779204655000,-424.16,0.00010959,2]
[422646303,1779204655000,-424.16,0.00010959,2]
[422646295,1779204655000,-424.16,0.00010959,2]
[422646297,1779204655000,-424.16,0.00010959,2]
[422646299,1779204655000,-424.16,0.00010959,2]
[422646300,1779204655000,-151.0,0.00010959,2]
[422646298,1779204655000,-151.0,0.00010959,2]
[422646302,1779204655000,-151.0,0.00010959,2]
[422646306,1779204655000,-424.16,0.00010959,2]
[422646317,1779204655000,-424.16,0.00010959,2]